Cogmind - Beta 14 @@@ ROGUE MODE // 2024.09.01 @ 20:02:05 Player: grhkm Result: Destroyed by Y-45 Defender with Beam Rifle Performance ------------- Evolutions (2) 1000 Regions Visited (3) 600 Robots Destroyed (27) 135 Value Destroyed (729) 729 Prototype IDs (0) 0 Alien Tech Used (0) 0 Bonus (-106) -106 TOTAL SCORE: 2358 Bonus ------- Friendly Fire -106 Cogmind --------- Core Integrity 0/550 Matter 270/300 Energy 100/100 System Corruption 0% Temperature Cool (18) Movement Core (450) Ox8 Location -8/Materials Parts ------- > --- POWER (1) -------- (None) > --- PROPULSION (3) --- (None) > --- UTILITY (4) ------ Small Storage Unit Large Storage Unit > --- WEAPON (3) ------- (None) > --- INVENTORY (15) --- Small Storage Unit Peak State ------------ > --- POWER ------------ Ion Engine > --- PROPULSION ------- Aluminum Leg Aluminum Leg Improved Aluminum Leg > --- UTILITY ---------- Small Storage Unit Large Storage Unit High-capacity Battery Medium Armor Plating > --- WEAPON ----------- Subdweller Beam Cannon Light Assault Rifle Subdweller Machine Gun > --- INVENTORY -------- Light Ion Engine Light Ion Engine Improved Aluminum Leg Small Storage Unit Medium Armor Plating EM Pulse Gun Heavy Riot Gun Medium Laser Subdweller Shrapnel Launcher [Rating: 16] Favorites ----------- Power Ion Engine Engine Ion Engine Propulsion Improved Aluminum Leg Leg Improved Aluminum Leg Utility Small Storage Unit Storage Small Storage Unit Protection Medium Armor Plating Weapon Subdweller Beam Cannon Energy Gun Medium Laser Energy Cannon Subdweller Beam Cannon Ballistic Gun Light Assault Rifle Launcher Rocket Launcher Build | -11 -10 -10 -8 ------- Run | Yrd Mat Sub Mat Slots Evolved 4 | . . . 4 Power . | . . . . Propulsion 1 | . . . 1 Utility 2 | . . . 2 Weapon 1 | . . . 1 Parts Attached 36 | 7 6 5 18 Power 5 | 1 1 . 3 Engine 5 | 1 1 . 3 Core . | . . . . Reactor . | . . . . Propulsion 10 | 2 2 2 4 Treads . | . . . . Leg 10 | 2 2 2 4 Wheel . | . . . . Hover . | . . . . Flight . | . . . . Utility 8 | 2 1 . 5 Device . | . . . . Storage 6 | 2 1 . 3 Processor . | . . . . Hackware . | . . . . Protection 2 | . . . 2 Artifact . | . . . . Weapon 13 | 2 2 3 6 Energy Gun 5 | . 1 . 4 Energy Cannon 1 | . . 1 . Ballistic Gun 4 | 2 . 1 1 Ballistic Cannon . | . . . . Launcher 3 | . 1 1 1 Special Weapon . | . . . . Impact Weapon . | . . . . Slashing Weapon . | . . . . Piercing Weapon . | . . . . Special Melee Weapon . | . . . . Unidentified Prototypes . | . . . . Parts Lost 26 | . 2 5 19 Power 4 | . . 1 3 Propulsion 7 | . . 2 5 Utility 3 | . . . 3 Weapon 12 | . 2 2 8 Highest Loss Streak 10 | . 2 5 10 To Critical Strikes . | . . . . Average Slot Usage (%) 92 | . 99 97 64 Engine 11 | . 14 11 5 Leg 25 | . 28 28 12 Storage 27 | . 28 28 25 Energy Gun 1 | . 1 . 3 Energy Cannon 8 | . . 13 2 Ballistic Gun 9 | . 24 2 7 Launcher 7 | . . 11 1 Peak Build Rating 16 | 7 11 13 16 Average Rating 10 | 4 8 12 10 On Entrance 7 | . 7 11 10 Naked Turns . | . . . . Heaviest Build 54 | 18 36 42 54 Greatest Support 33 | 20 26 26 33 Greatest Overweight (x) 15 | 3 1 1 15 Average Overweight (x) 1 | . . 1 3 Largest Inventory Capacity 15 | 8 15 15 15 Average Capacity 14 | 7 14 15 15 Most Carried 15 | 2 13 15 13 Average Carried 10 | 1 8 14 5 Final Capacity 15 | 8 15 15 15 Final Carried 14 | 2 13 14 1 Class Distribution -------------------- 94% | Mutant 5% | Scavenger-Tank Dominant Class ---------------- Mutant | -10/Materials Mutant | -10/Subcaves Mutant | -8/Materials Resources | -11 -10 -10 -8 ----------- Run | Yrd Mat Sub Mat Matter Collected 782 | 284 109 165 224 Remotely . | . . . . Salvage Created 805 | 74 278 230 223 Parts 44 | 2 20 15 7 Haulers Intercepted . | . . . . Recyclers Shooed 1 | . . . 1 Parts Field Recycled . | . . . . Retrieved Matter . | . . . . Parts Self-Destructed 14 | . . 14 . Prevented . | . . . . Kills | -11 -10 -10 -8 ------- Run | Yrd Mat Sub Mat Combat Hostiles Destroyed 21 | . 10 6 5 Guns 9 | . 6 2 1 Cannons 1 | . . 1 . AOE 10 | . 4 2 4 Classes Destroyed 7 | 1 3 2 1 Worker 2 | . 1 . 1 Recycler 3 | 1 1 . 1 Watcher 1 | . . . 1 Swarmer 6 | . 6 . . Grunt 9 | . 4 . 5 Artisan 1 | . . 1 . Subdweller 6 | . . 6 . Best Kill Streak 9 | 1 9 3 5 Combat Bots Only 4 | . 4 3 3 Max Kills in Single Turn 3 | 1 3 3 3 Gunslinging . | . . . . Exploded 3 | . 3 1 2 Melee . | . . . . Uniques/NPCs Destroyed . | . . . . Combat | -11 -10 -10 -8 -------- Run | Yrd Mat Sub Mat Hostile Shots Fired 229 | . 66 26 137 Missed 60 | . 11 8 41 Damage Taken 3226 | . 591 518 2117 Core 750 | . 94 97 559 Absorbed by Shields . | . . . . Core Remaining (%) 61 | 100 . 23 . Volleys Fired 79 | 10 24 20 25 Largest 3 | 1 2 2 3 Hottest 130 | 20 83 113 130 Shots Fired 126 | 10 45 35 36 Gun 91 | 10 43 11 27 Cannon 18 | . . 17 1 Launcher 17 | . 2 7 8 Special . | . . . . Kinetic 70 | 10 34 8 18 Thermal 36 | . 9 20 7 Explosive 9 | . 2 7 . Electromagnetic 11 | . . . 11 Robot Hit Streak 9 | 3 9 5 8 Robot Miss Streak 3 | 2 3 1 3 Penetration Max . | . . . . Secondary Targets 1 | . 1 . . Max Gunslinging Chain 1 | . 1 . . Shots Hit Robots 80 | 6 30 19 25 Core Hits 48 | 2 18 10 18 Critical Kills 1 | . . 1 . Critical Parts Destroyed . | . . . . Critical Strikes 1 | . . 1 . Meltdown 1 | . . 1 . Melee Attacks . | . . . . Impact . | . . . . Slashing . | . . . . Piercing . | . . . . Sneak Attacks . | . . . . Combat Hostiles . | . . . . Follow-up Attacks . | . . . . Damage Inflicted 3079 | 74 595 1193 1217 Guns 748 | 74 327 118 229 Cannons 363 | . . 338 25 Explosions 1963 | . 265 737 961 Melee . | . . . . Ramming 5 | . 3 . 2 Kinetic 1385 | 74 251 105 955 Thermal 546 | . 76 351 119 Explosive 1002 | . 265 737 . Electromagnetic 141 | . . . 141 Impact . | . . . . Slashing . | . . . . Piercing . | . . . . Highest Corruption . | . . . . Average Corruption . | . . . . Corruption Purged . | . . . . Corruption Blocked . | . . . . Overload Shots . | . . . . Overflow Damage 90 | . 15 . 75 Projectiles . | . . . . Explosions 90 | . 15 . 75 Melee . | . . . . Knockbacks . | . . . . Impact . | . . . . Kinetic . | . . . . Secondary . | . . . . Self-Inflicted Damage 207 | . . 16 191 Shots 7 | . . 1 6 Rammed . | . . . . Targets Rammed 4 | . 3 . 1 Kicked 4 | . 3 . 1 Crushed . | . . . . Highest Temperature 108 | . 108 6 71 Average Temperature 30 | . 34 3 29 Received Heat Transfer 1095 | . 231 54 810 Siege Activations . | . . . . Robots Corrupted . | . . . . Combat Hostiles . | . . . . Parts Fried . | . . . . Impact Corruptions . | . . . . Robots Melted 1 | . . 1 . Combat Hostiles 1 | . . 1 . Parts Melted 2 | . . 2 . Heat Transferred 901 | . 222 481 198 Parts Sabotaged . | . . . . Parts Stolen . | . . . . Parts Stripped . | . . . . Power Chain Reactions 1 | . . . 1 Alert | -11 -10 -10 -8 ------- Run | Yrd Mat Sub Mat Peak Influence 199 | 5 199 . 155 Initial 3 | . 3 . . Average 60 | 3 71 . 63 Maximum Alert Level . | . . . . Low Security (%) 100 | 100 100 . 100 Level 1 . | . . . . Level 2 . | . . . . Level 3 . | . . . . Level 4 . | . . . . Level 5 . | . . . . High Security . | . . . . Max Security . | . . . . Squads Dispatched 3 | . 1 . 2 Investigation . | . . . . Extermination . | . . . . Reinforcement 3 | . 1 . 2 Assault . | . . . . Garrison . | . . . . Intercept . | . . . . Searches Triggered . | . . . . Construction Impeded 1 | . . . 1 Haulers Reinforced . | . . . . Active Scanning Responses . | . . . . Cargo Convoy Interrupts . | . . . . Stealth | -11 -10 -10 -8 --------- Run | Yrd Mat Sub Mat Distress Signals 3 | . 1 . 2 Communications Jammed . | . . . . Distress Signals . | . . . . Times Spotted 41 | . 15 14 12 Peak Tracking Total 6 | . 5 6 6 Tactical Retreats 2 | . 1 . 1 Traps | -11 -10 -10 -8 ------- Run | Yrd Mat Sub Mat Traps Triggered . | . . . . Indirectly . | . . . . Trap Hack Attempts . | . . . . Triggered . | . . . . Disarmed . | . . . . Reprogrammed . | . . . . Reused . | . . . . Traps Extracted . | . . . . Installed . | . . . . Triggered . | . . . . Machines | -11 -10 -10 -8 ---------- Run | Yrd Mat Sub Mat Machines Disabled . | . . . . Max in Single Turn . | . . . . Machines Repaired . | . . . . Machines Dismantled . | . . . . Machines Sabotaged . | . . . . Overloaded Fab Kills . | . . . . Hacking | -11 -10 -10 -8 --------- Run | Yrd Mat Sub Mat Machines Accessed 2 | . 1 1 . Terminals 1 | . 1 . . Fabricators . | . . . . Repair Stations . | . . . . Recycling Units . | . . . . Scanalyzers . | . . . . Garrison Access . | . . . . Total Hacks 6 | . 2 4 . Successful 5 | . 1 4 . Failed 1 | . 1 . . Catastrophic . | . . . . Database Lockouts . | . . . . Manual . | . . . . Terminals 2 | . 2 . . Fabricators . | . . . . Repair Stations . | . . . . Recycling Units . | . . . . Scanalyzers . | . . . . Garrison Access . | . . . . Terminal Hacks 5 | . 1 4 . Record 4 | . . 4 . Alert Level 1 | . 1 . . Fabricator Hacks . | . . . . Repair Station Hacks . | . . . . Recycling Unit Hacks . | . . . . Scanalyzer . | . . . . Garrison Access Hacks . | . . . . Unauthorized Hacks . | . . . . Terminals . | . . . . Fabricators . | . . . . Repair Stations . | . . . . Recycling Units . | . . . . Scanalyzers . | . . . . Garrison Access . | . . . . Data Cores Recovered . | . . . . Used . | . . . . Hacking Detections . | . . . . Full Trace Events . | . . . . Feedback Events . | . . . . Feedback Blocked . | . . . . Robot Schematics Acquired . | . . . . Robots Built . | . . . . Authchips . | . . . . Time . | . . . . Total Robot Build Rating . | . . . . Part Schematics Acquired . | . . . . Parts Built . | . . . . Authchips . | . . . . Time . | . . . . Total Part Build Rating . | . . . . Parts Repaired . | . . . . Time . | . . . . Parts Recycled . | . . . . Recycled Matter . | . . . . Retrieved Matter . | . . . . Retrieved Components . | . . . . Parts Scanalyzed . | . . . . Part Schematics Acquired . | . . . . Parts Damaged . | . . . . Bothacking | -11 -10 -10 -8 ------------ Run | Yrd Mat Sub Mat Used RIF Installer . | . . . . Robots Hacked . | . . . . Non-combat . | . . . . Combat . | . . . . Robot Hacks Applied . | . . . . Relay Couplers Released . | . . . . Fabnet Peak Effective % . | . . . . Robots Rewired . | . . . . Allies Hacked . | . . . . Hacks Repelled . | . . . . Allies | -11 -10 -10 -8 -------- Run | Yrd Mat Sub Mat Total Allies . | . . . . Largest Group . | . . . . Highest-Rated Group . | . . . . Highest-Rated Ally . | . . . . Total Orders . | . . . . Ally Attacks . | . . . . Total Damage . | . . . . Kills . | . . . . Allies Corrupted . | . . . . Allies Melted . | . . . . Intel | -11 -10 -10 -8 ------- Run | Yrd Mat Sub Mat Robot Analysis Total . | . . . . Derelict Logs Recovered 2 | . . 2 . Drone Launches . | . . . . Drone Recoveries . | . . . . Exploration | -11 -10 -10 -8 ------------- Run | Yrd Mat Sub Mat Turns Passed 2092 | 129 537 1091 335 Spaces Moved 931 | 79 226 540 86 Core 31 | 16 . . 15 Treads . | . . . . Legs 900 | 63 226 540 71 Wheels . | . . . . Hover . | . . . . Flight . | . . . . Fastest Speed 50 | 50 120 190 190 Average Speed 190 | 123 176 190 293 Slowest Speed 800 | 200 190 190 800 Overloaded Moves . | . . . . Propulsion Burnouts . | . . . . Robots Hopped . | . . . . Cave-ins Triggered . | . . . . Exploration Rate (%) 26 | 6 41 51 9 Regions Visited 3 Branch Regions 1 Pre-discovered Areas 1 | . . 1 . Known Exits Taken . | . . . . Unknown Exits Taken 3 | 1 1 1 . Scrap Searched . | . . . . Spaces Dug . | . . . . Terrain Destroyed 166 | . 27 55 84 Melee . | . . . . Projectile . | . . . . AOE 166 | . 27 55 84 Terrain Rammed . | . . . . Walls Destroyed . | . . . . Machines Disabled . | . . . . Actions | -11 -10 -10 -8 --------- Run | Yrd Mat Sub Mat Total 1123 | 97 322 571 133 Wait 54 | . 51 1 2 Move 928 | 78 225 539 86 Hop . | . . . . Pick Up 18 | 2 11 5 . Fast Attach 10 | 7 . . 3 Attach 21 | . 2 5 14 Detach 2 | . . 1 1 Swap 5 | . 4 . 1 Drop 2 | . 2 . . Fire 79 | 10 24 20 25 Melee . | . . . . Ram . | . . . . Kick 4 | . 3 . 1 Crush . | . . . . Escape Stasis . | . . . . Rewire . | . . . . Trap . | . . . . Miscellaneous . | . . . . Route ------- -11/Scrapyard -10/Materials (discovered 2 exits: [*Min] / *Sub) -10/Subcaves -8/Materials (discovered 3 exits: Fac / Sto x2) History --------- Turn | Location | Event 7 | -11/Scrapyard | Discovered new exit (range 15) 130 | -11/Scrapyard | Entered Materials 277 | -10/Materials | Discovered new exit (range 15) 302 | -10/Materials | Build established: Mutant 656 | -10/Materials | Discovered new exit (range 7) 667 | -10/Materials | Entered Subcaves 679 | -10/Subcaves | Learned 4 Materials zone layouts 808 | -10/Subcaves | Ambushed by swarm of Subdwellers 979 | -10/Subcaves | Visited Clippyterm 985 | -10/Subcaves | Learned location of Section 7 (-2) 1444 | -10/Subcaves | Core integrity fell below 50% 1607 | -10/Subcaves | Lost 5 parts (1p2n2w) 1735 | -10/Subcaves | Discovered new exit (range 5) 1758 | -10/Subcaves | Entered Materials 1758 | -8/Materials | Evolved 4 slots: Propulsion x1, Utility x2, Weapon x1 1759 | -8/Materials | Identified exit to Storage 1760 | -8/Materials | Identified exit to Factory 1952 | -8/Materials | Lost 10 parts (2p3n1u4w) 2007 | -8/Materials | Core integrity fell below 50% 2086 | -8/Materials | Core integrity fell below 20% 2093 | -8/Materials | Destroyed by Y-45 Defender with Beam Rifle Last Messages --------------- K-01 Serf collects debris. Acquired Aluminum Leg. U-05 Engineer lays Concrete. K-01 Serf collects debris. Hvy. Riot Gun destroyed. Critical hit (Burn: +37). U-05 Engineer lays Concrete. U-05 Engineer builds a Wall. K-01 Serf collects debris. U-05 Engineer builds a Wall. K-01 Serf collects debris. Hcp. Battery destroyed. K-01 Serf collects debris. Aluminum Leg destroyed. Critical hit (Burn: +37). Lgt. Ion Engine destroyed. Med. Armor Plating destroyed. Particle Gun destroyed. Med. Laser destroyed. Critical hit (Burn: +37). Map ----- +----------------------------------------------------+ | ???????????????????????????????????????????? | | ???????????????????????????????????????????? | | ???????????????????????????????????????????? | | ???????????????????????????????????????????? | | ???????????????????????????????????????????? | | ???????????????????????????????????????????? | | ???????????????????????????????????????????? | | ???????????????????????????????????????????? | | ???????????????????????????????????????????? | | ???????????????????????????????????????????? | | ?????????????????????????? ???????????????? | | ?????????????????????????#w ???????????????? | | ????????????????????????? ???????????????? | | ????????????????????????? Y ???????????????? | | ????????????????????????? #???????????????? | | ????????????????????????? #???????????????? | | ????????????????????????? #???????????????? | | ????????????????????????# #???????????????? | | ???????????????????????## #???????????????? | | ???????????????????????? ????????????????? | | ???????????????????????? ????????????????? | | ???????????????????????? ????????????????? | | ???????????????????????? Y ????????????????? | | ## # "R" # ?????# #????????????????? | | ## # """ # ?????# #????????????????? | | ## # # ?????#@#????????????????? | | ## ########### ?????# #????????????????? | | ## #?????????####?????# #????????????????? | | ## #?????????????######g###??????????????? | | ?# #?????????????# #??????????????? | | ?# #?????????????# !% ##########?????? | | ?# #?????????????#[%% "g # ?????? | | ?# #?????????????# ! "" # ?????? | | ?# #?????????????# "" # ! #????? | | ?# #????????###??# """"" #!! """ #????? | | ?# #???????## ### """ #!! """ #????? | | ?# #??????## # =*! # """ ?????? | | ## ##?????# !! # ???????? | | #?????# # "# ????????? | | # #######" # # ##+####???????? | | # #???????? | | # #???????? | | # #???????? | | ###+######### % ### #######???????? | | #???# ######????????? | | """ #???### # #??? | | """ #?????### ## #########?????? | | """ #???????# ## " #?????????????? | | ????????????????# ###### ###?????????????? | | ????????????#####+###### #???????????????? | +----------------------------------------------------+ Best States ------------- Heat Dissipation 31 Energy Generation 10 Energy Capacity 500 Matter Stores 300 Matter Capacity 300 Sight Range 16 Terrain Scan Density 10 Armor Coverage 225 Evasion (%) 55 Item Schematics ----------------- None Robot Schematics ------------------ None Fabricated ------------ Nothing Alien Tech Used ----------------- None Achievements -------------- It's Just You Challenges ------------ None Game ------ Seed InertialCorruptionFrame Manual? 0 Play Time 00:20:38 Cumulative 2.6 hours Start 2024.09.01 @ 15:09:30 End 2024.09.01 @ 20:02:05 Sessions 4 Manual Loads 0 Difficulty Rogue Special Mode None Game No. 9 Rogue 9 Adventurer 0 Explorer 0 Win Type - Total 0 Types 0/0/0/0/0/0/0/0/0 Lore% 1 Gallery% 7 Achievement% 5 Wizard Run 0 Options --------- Layout 1 ASCII 0 Keyboard 0 Movement Numpad Keybinds 0 Fullscreen 1 Font 16/SmallcapsGlow Map View 50x40 Zoom Use 6% Tactical HUD 0 Map Filters NONE Filters NONE Steam 1 RUN: 41a67b0f-4f8a-476d-818e-1955c1105a51